fUST/lending_fUST_20240816
["ID","MTS","AMOUNT","RATE_DAILY","PERIOD"]
[335066361,1723803045160,-504.53005604,0.00043835,120]
[335066362,1723803045170,-500.0,0.00043835,120]
[335066363,1723803045179,-879.45,0.00043835,120]
[335066364,1723803045192,-503.73145126,0.00043835,120]
[335066365,1723803045203,-500.0,0.00043835,120]
[335066366,1723803045212,-502.62160455,0.00043835,120]
[335066367,1723803045222,-510.2088981,0.00043835,120]
[335066368,1723803045232,-504.32328428,0.00043835,120]
[335066369,1723803045241,-507.81119699,0.00043835,120]
[335066370,1723803045251,-500.0,0.00043835,120]
[335066371,1723803045261,-500.0,0.00043835,120]
[335066372,1723803045270,-500.0,0.00043835,120]
[335066373,1723803045281,-500.0,0.00043835,120]
[335066374,1723803045290,-500.47343726,0.00043835,120]
[335066375,1723803045299,-504.11746152,0.00043835,120]
[335066376,1723803045309,-200.0,0.00043835,7]
[335066377,1723803045319,-502.480702,0.00043835,120]
[335066378,1723803045329,-502.480702,0.00043835,120]
[335066379,1723803045339,-500.0,0.00043835,120]
[335066381,1723803045348,-500.0,0.00043835,7]
[335066382,1723803045357,-502.92532352,0.00043835,120]
[335066383,1723803045366,-500.0,0.00043835,120]
[335066384,1723803045376,-502.480702,0.00043835,120]
[335066385,1723803045386,-502.480702,0.00043835,120]
[335066386,1723803045396,-500.0,0.00043835,120]
[335066387,1723803045405,-587.82010139,0.00043835,120]
[335066388,1723803045414,-503.98663491,0.00043835,120]
[335066389,1723803045424,-500.0,0.00043835,120]
[335066390,1723803045433,-501.65745227,0.00043835,120]
[335066391,1723803045443,-500.16305066,0.00043835,120]
[335066392,1723803045453,-500.0,0.00043835,120]
[335066393,1723803045463,-500.0,0.00043835,30]
[335066394,1723803045472,-500.0,0.00043835,120]
[335066395,1723803045482,-500.0,0.00043835,120]
[335066396,1723803045492,-151.0,0.00043835,120]
[335066397,1723803045502,-629.25,0.00043835,120]
[335066398,1723803045511,-151.0,0.00043835,120]
[335066399,1723803045521,-151.0,0.00043835,120]
[335066400,1723803045531,-503.18206037,0.00043835,120]
[335066401,1723803045541,-624.17,0.00043835,120]
[335066402,1723803045550,-500.0,0.00043835,120]
[335066403,1723803045560,-500.80485468,0.00043835,120]
[335066404,1723803045570,-1541.74,0.00043835,120]
[335066405,1723803045581,-1541.74,0.00043835,120]
[335066406,1723803045590,-1541.74,0.00043835,120]
[335066407,1723803045600,-500.0,0.00043835,120]
[335066408,1723803045610,-1541.74,0.00043835,120]
[335066409,1723803045619,-500.0,0.00043835,120]
[335066410,1723803045629,-1541.74,0.00043835,120]
[335066411,1723803045638,-500.0,0.00043835,120]
[335066412,1723803045647,-1541.74,0.00043835,120]
[335066413,1723803045657,-1541.74,0.00043835,120]
[335066414,1723803045666,-1541.74,0.00043835,120]
[335066415,1723803045676,-1541.74,0.00043835,120]
[335066416,1723803045686,-1541.74,0.00043835,120]
[335066417,1723803045696,-504.23447486,0.00043835,120]
[335066418,1723803045705,-1541.74,0.00043835,120]
[335066419,1723803045716,-1541.74,0.00043835,120]
[335066420,1723803045726,-1541.74,0.00043835,120]
[335066421,1723803045735,-1541.74,0.00043835,120]
[335066422,1723803045745,-1541.74,0.00043835,120]
[335066423,1723803045755,-1541.74,0.00043835,120]
[335066424,1723803045765,-1541.74,0.00043835,120]
[335066425,1723803045774,-1541.74,0.00043835,120]
[335066426,1723803045785,-1541.74,0.00043835,120]
[335066427,1723803045795,-1541.74,0.00043835,120]
[335066428,1723803045804,-500.0,0.00043835,120]
[335066429,1723803045813,-1541.74,0.00043835,120]
[335066430,1723803045822,-1541.74,0.00043835,120]
[335066431,1723803045832,-1541.74,0.00043835,120]
[335066432,1723803045842,-1541.88454231,0.00043835,120]
[335066433,1723803045853,-503.57336223,0.00043835,120]
[335066434,1723803045862,-500.0,0.00043835,120]
[335066435,1723803045871,-687.16,0.00043835,120]
[335066436,1723803045881,-500.0,0.00043835,120]
[335066437,1723803045891,-761.25,0.00043835,120]
[335066438,1723803045900,-151.0,0.00043835,120]
[335066439,1723803045909,-151.0,0.00043835,120]
[335066440,1723803045919,-531.01320266,0.00043835,120]
[335066441,1723803045928,-500.0,0.00043835,120]
[335066442,1723803045938,-502.59115704,0.00043835,120]
[335066443,1723803045947,-500.0,0.00043835,120]
[335066444,1723803045957,-500.0,0.00043835,120]
[335066445,1723803045966,-500.0,0.00043835,120]
[335066446,1723803045976,-502.10933279,0.00043835,120]
[335066447,1723803045985,-500.0,0.00043835,120]
[335066448,1723803045995,-500.0,0.00043835,120]
[335066449,1723803046005,-502.02026745,0.00043835,120]
[335066450,1723803046015,-645.09545101,0.00043835,120]
[335066451,1723803046024,-500.0,0.00043835,120]
[335066452,1723803046035,-500.0,0.00043835,120]
[335066453,1723803046044,-500.0,0.00043835,120]
[335066454,1723803046054,-500.0,0.00043835,120]
[335066455,1723803046064,-500.79753519,0.00043835,120]
[335066456,1723803046073,-500.0,0.00043835,120]
[335066457,1723803046082,-500.0,0.00043835,120]
[335066458,1723803046092,-500.0,0.00043835,120]
[335066459,1723803046102,-501.77046906,0.00043835,120]
[335066460,1723803046115,-500.0,0.00043835,120]
[335066461,1723803046125,-151.0,0.00043835,120]
[335066462,1723803046134,-151.0,0.00043835,120]
[335066463,1723803046144,-151.0,0.00043835,120]
[335066465,1723803046154,-500.0,0.00043835,120]
[335066466,1723803046163,-500.0,0.00043835,120]
[335066467,1723803046173,-193.07026,0.00043835,120]
[335066468,1723803046183,-506.79818407,0.00043835,120]
[335066469,1723803046194,-534.92153647,0.00043835,120]
[335066470,1723803046203,-500.0,0.00043835,120]
[335066471,1723803046212,-541.7301274,0.00043835,120]
[335066472,1723803046222,-500.0,0.00043835,120]
[335066473,1723803046232,-500.0,0.00043835,120]
[335066474,1723803046242,-299.087909,0.00043835,120]
[335066478,1723803046354,-299.087909,0.00043835,120]
[335066479,1723803046364,-299.087909,0.00043835,120]
[335066480,1723803046373,-500.0,0.00043835,120]
[335066481,1723803046382,-500.0,0.00043835,120]
[335066482,1723803046391,-151.0,0.00043835,120]
[335066483,1723803046401,-333.31335251,0.00043835,120]
[335066484,1723803046410,-151.0,0.00043835,120]
[335066485,1723803046420,-151.0,0.00043835,120]
[335066486,1723803046430,-500.0,0.00043835,120]
[335066487,1723803046439,-151.0,0.00043835,120]
[335066488,1723803046450,-376.98802734,0.00043835,30]
[335066489,1723803046459,-500.0,0.00043835,120]
[335066490,1723803046469,-500.0,0.00043835,120]
[335066491,1723803046479,-500.7796456,0.00043835,120]
[335066492,1723803046490,-502.2238832,0.00043835,120]
[335066493,1723803046500,-500.0,0.00043835,120]
[335066494,1723803046510,-500.0,0.00043835,7]
[335066495,1723803046521,-500.0,0.00043835,120]
[335066496,1723803046533,-500.0,0.00043835,120]
[335066497,1723803046543,-500.0,0.00043835,120]
[335066498,1723803046552,-500.0,0.00043835,120]
[335066499,1723803046561,-500.0,0.00043835,120]
[335066500,1723803046571,-500.0,0.00043835,120]
[335066501,1723803046580,-151.0,0.00043835,120]
[335066502,1723803046590,-500.0,0.00043835,120]
[335066503,1723803046599,-270.991535,0.00043835,120]
[335066504,1723803046609,-504.84960246,0.00043835,120]
[335066505,1723803046619,-500.0,0.00043835,120]
[335066506,1723803046629,-152.757952,0.00043835,120]
[335066507,1723803046640,-1031.41,0.00043835,120]
[335066508,1723803046650,-500.0,0.00043835,120]
[335066509,1723803046660,-500.0,0.00043835,120]
[335066510,1723803046670,-500.0,0.00043835,120]
[335066511,1723803046679,-500.0,0.00043835,120]
[335066512,1723803046688,-500.0,0.00043835,120]
[335066513,1723803046698,-1343.18,0.00043835,120]
[335066514,1723803046707,-500.0,0.00043835,120]
[335066515,1723803046717,-504.49386152,0.00043835,120]
[335066516,1723803046726,-500.90960856,0.00043835,120]
[335066517,1723803046735,-500.0,0.00043835,120]
[335066518,1723803046744,-503.48486232,0.00043835,120]
[335066519,1723803046755,-500.0,0.00043835,120]
[335066520,1723803046764,-201.12130316,0.00043835,120]
[335066521,1723803046773,-500.0,0.00043835,120]
[335066522,1723803046785,-611.75,0.00043835,120]
[335066523,1723803046794,-500.0,0.00043835,120]
[335066524,1723803046803,-500.0,0.00043835,120]
[335066525,1723803046812,-500.0,0.00043835,120]
[335066526,1723803046822,-500.0,0.00043835,120]
[335066527,1723803046831,-966.61,0.00043835,120]
[335066528,1723803046841,-808.65,0.00043835,120]
[335066529,1723803046850,-505.62444529,0.00043835,120]
[335066530,1723803046860,-416.62419217,0.00043835,120]
[335066531,1723803046869,-500.0,0.00043835,120]
[335066532,1723803046879,-500.0,0.00043835,120]
[335066533,1723803046888,-533.2847126,0.00043835,120]
[335066534,1723803046899,-500.0,0.00043835,120]
[335066535,1723803046909,-182.640563,0.00043835,120]
[335066536,1723803046918,-1034.88,0.00043835,120]
[335066537,1723803046929,-500.0,0.00043835,120]
[335066538,1723803046939,-182.640563,0.00043835,120]
[335066539,1723803046950,-1201.14,0.00043835,7]
[335066540,1723803046960,-182.640563,0.00043835,120]
[335066541,1723803046971,-500.0,0.00043835,120]
[335066542,1723803046981,-1229.06,0.00043835,120]
[335066543,1723803046992,-182.640563,0.00043835,120]
[335066544,1723803047002,-500.0,0.00043835,120]
[335066545,1723803047014,-503.26745851,0.00043835,120]
[335066546,1723803047025,-500.0,0.00043835,120]
[335066547,1723803047035,-182.640563,0.00043835,120]
[335066548,1723803047045,-959.69,0.00043835,120]
[335066549,1723803047055,-182.640563,0.00043835,120]
[335066550,1723803047064,-182.640563,0.00043835,120]
[335066551,1723803047074,-182.640563,0.00043835,120]
[335066552,1723803047083,-500.30633317,0.00043835,120]
[335066553,1723803047093,-500.0,0.00043835,120]
[335066554,1723803047103,-500.0,0.00043835,120]
[335066555,1723803047116,-1842.05,0.00043835,120]
[335066556,1723803047126,-500.0,0.00043835,120]
[335066557,1723803047136,-500.0,0.00043835,120]
[335066558,1723803047147,-151.0,0.00043835,120]
[335066559,1723803047156,-500.0,0.00043835,120]
[335066560,1723803047166,-354.40660864,0.00043835,120]
[335066561,1723803047175,-151.0,0.00043835,120]
[335066562,1723803047186,-151.0,0.00043835,120]
[335066563,1723803047404,-151.0,0.00043835,120]
[335066564,1723803047414,-500.0,0.00043835,120]
[335066565,1723803047425,-500.0,0.00043835,120]
[335066566,1723803047435,-500.0,0.00043835,120]
[335066567,1723803047446,-501.52531322,0.00043835,120]
[335066568,1723803047456,-500.0,0.00043835,120]
[335066569,1723803047466,-500.0,0.00043835,120]
[335066570,1723803047475,-500.0,0.00043835,120]
[335066571,1723803047485,-500.0,0.00043835,120]
[335066572,1723803047495,-4019.79,0.00043835,120]
[335066573,1723803047504,-1177.64,0.00043835,120]
[335066574,1723803047514,-500.0,0.00043835,120]
[335066575,1723803047524,-500.0,0.00043835,120]
[335066576,1723803047534,-581.057176,0.00043835,120]
[335066577,1723803047544,-581.057176,0.00043835,120]
[335066578,1723803047553,-500.93352816,0.00043835,120]
[335066579,1723803047563,-581.057176,0.00043835,120]
[335066580,1723803047572,-202.02022492,0.00043835,120]
[335066581,1723803047581,-581.057176,0.00043835,120]
[335066582,1723803047591,-500.0,0.00043835,120]
[335066583,1723803047600,-581.057176,0.00043835,120]
[335066584,1723803047610,-734.29,0.00043835,120]
[335066585,1723803047619,-581.057176,0.00043835,120]
[335066586,1723803047629,-376.49197384,0.00043835,120]
[335066587,1723803047638,-581.057176,0.00043835,120]
[335066588,1723803047648,-581.057176,0.00043835,120]
[335066589,1723803047659,-539.67420244,0.00043835,120]
[335066590,1723803047670,-151.0,0.00043835,120]
[335066591,1723803047680,-151.0,0.00043835,120]
[335066592,1723803047689,-500.0,0.00043835,120]
[335066593,1723803047699,-151.0,0.00043835,120]
[335066594,1723803047709,-151.0,0.00043835,120]
[335066595,1723803047718,-500.0,0.00043835,120]
[335066596,1723803047728,-500.0,0.00043835,120]
[335066597,1723803047738,-1491.73,0.00043835,120]
[335066598,1723803047747,-577.53,0.00043835,120]
[335066599,1723803047757,-500.0,0.00043835,120]
[335066600,1723803047766,-500.0,0.00043835,120]
[335066601,1723803047776,-500.0,0.00043835,120]
[335066602,1723803047786,-750.73,0.00043835,120]
[335066603,1723803047796,-1000.33,0.00043835,120]
[335066604,1723803047806,-500.0,0.00043835,120]
[335066605,1723803047815,-500.0,0.00043835,120]
[335066606,1723803047825,-1197.34,0.00043835,120]
[335066607,1723803047834,-500.0,0.00043835,120]
[335066608,1723803047843,-500.0,0.00043835,120]
[335066609,1723803047853,-151.0,0.00043835,120]
[335066610,1723803047862,-151.0,0.00043835,120]
[335066611,1723803047871,-151.0,0.00043835,120]
[335066612,1723803047881,-151.0,0.00043835,120]
[335066613,1723803047890,-500.0,0.00043835,120]
[335066614,1723803047899,-500.0,0.00043835,120]
[335066615,1723803047909,-1058.26,0.00043835,120]
[335066616,1723803047918,-550.81,0.00043835,120]
[335066617,1723803047927,-500.0,0.00043835,120]
[335066618,1723803047939,-724.15,0.00043835,120]
[335066619,1723803047949,-500.0,0.00043835,7]
[335066620,1723803047960,-513.49679102,0.00043835,120]
[335066621,1723803047970,-231.074624,0.00043835,120]
[335066622,1723803047979,-701.83,0.00043835,120]
[335066623,1723803047988,-151.0,0.00043835,120]
[335066624,1723803048000,-151.0,0.00043835,120]
[335066625,1723803048010,-151.0,0.00043835,120]
[335066626,1723803048019,-500.0,0.00043835,120]
[335066627,1723803048028,-151.0,0.00043835,120]
[335066628,1723803048039,-500.0,0.00043835,120]
[335066629,1723803048049,-500.0,0.00043835,120]
[335066630,1723803048058,-569.27,0.00043835,120]
[335066631,1723803048067,-500.0,0.00043835,120]
[335066632,1723803048076,-500.0,0.00043835,120]
[335066633,1723803048086,-657.06,0.00043835,120]
[335066634,1723803048095,-500.0,0.00043835,120]
[335066635,1723803048109,-6302.21,0.00043835,120]
[335066636,1723803048118,-500.0,0.00043835,120]
[335066637,1723803048128,-1143.17,0.00043835,120]
[335066638,1723803048139,-500.0,0.00043835,120]
[335066639,1723803048151,-746.33,0.00043835,120]
[335066640,1723803048160,-503.96346188,0.00043835,120]
[335066641,1723803048169,-500.0,0.00043835,120]
[335066642,1723803048179,-500.0,0.00043835,120]
[335066643,1723803048189,-2406.03,0.00043835,120]
[335066644,1723803048199,-500.0,0.00043835,120]
[335066645,1723803048210,-243.861904,0.00043835,120]
[335066646,1723803048219,-243.861904,0.00043835,120]
[335066647,1723803048230,-243.861904,0.00043835,120]
[335066648,1723803048240,-500.0,0.00043835,120]
[335066649,1723803048249,-243.861904,0.00043835,120]
[335066650,1723803048259,-500.0,0.00043835,120]
[335066651,1723803048269,-243.861904,0.00043835,120]
[335066652,1723803048278,-243.861904,0.00043835,120]
[335066653,1723803048289,-500.0,0.00043835,120]
[335066654,1723803048298,-500.0,0.00043835,120]
[335066655,1723803048309,-999.15,0.00043835,120]
[335066656,1723803048318,-500.0,0.00043835,120]
[335066657,1723803048328,-151.0,0.00043835,120]
[335066658,1723803048338,-151.0,0.00043835,120]
[335066659,1723803048348,-500.0,0.00043835,120]
[335066660,1723803048357,-151.0,0.00043835,120]
[335066661,1723803048367,-801.93,0.00043835,120]
[335066662,1723803048377,-500.0,0.00043835,120]
[335066663,1723803048387,-500.0,0.00043835,120]
[335066664,1723803048397,-500.0,0.00043835,120]
[335066665,1723803048407,-1985.36,0.00043835,21]
[335066666,1723803048416,-502.42270855,0.00043835,120]
[335066667,1723803048426,-500.0,0.00043835,120]
[335066668,1723803048435,-500.0,0.00043835,120]
[335066669,1723803048446,-500.0,0.00043835,30]
[335066670,1723803048456,-500.0,0.00043835,120]
[335066671,1723803048466,-1603.84,0.00043835,120]
[335066672,1723803048475,-500.0,0.00043835,120]
[335066673,1723803048485,-881.98,0.00043835,120]
[335066674,1723803048495,-500.0,0.00043835,120]
[335066675,1723803048504,-300.84939592,0.00043835,120]
[335066676,1723803048514,-261.512002,0.00043835,120]
[335066677,1723803048523,-261.512002,0.00043835,120]
[335066678,1723803048535,-261.512002,0.00043835,120]
[335066679,1723803048546,-500.0,0.00043835,120]
[335066680,1723803048556,-502.04127956,0.00043835,120]
[335066681,1723803048566,-261.512002,0.00043835,120]
[335066682,1723803048575,-462.92434819,0.00043835,120]
[335066683,1723803048585,-604.15,0.00043835,120]
[335066684,1723803048595,-261.512002,0.00043835,120]
[335066685,1723803048605,-261.512002,0.00043835,120]
[335066686,1723803048615,-500.0,0.00043835,120]
[335066687,1723803048625,-1989.55,0.00043835,120]
[335066688,1723803048634,-500.0,0.00043835,120]
[335066689,1723803048644,-973.37,0.00043835,120]
[335066690,1723803048653,-500.0,0.00043835,120]
[335066691,1723803048664,-500.0,0.00043835,120]
[335066692,1723803048675,-759.43,0.00043835,120]
[335066693,1723803048685,-500.0,0.00043835,120]
[335066695,1723803048694,-1031.39,0.00043835,120]
[335066696,1723803048704,-500.0,0.00043835,120]
[335066697,1723803048715,-500.0,0.00043835,120]
[335066698,1723803048725,-500.0,0.00043835,120]
[335066699,1723803048735,-500.0,0.00043835,120]
[335066700,1723803048745,-500.0,0.00043835,120]
[335066701,1723803048755,-501.71965185,0.00043835,120]
[335066702,1723803048765,-548.58,0.00043835,120]
[335066703,1723803048774,-512.71,0.00043835,120]
[335066704,1723803048786,-505.54323713,0.00043835,120]
[335066705,1723803048795,-500.0,0.00043835,120]
[335066706,1723803048805,-844.74,0.00043835,120]
[335066707,1723803048815,-500.0,0.00043835,120]
[335066708,1723803048825,-520.08641047,0.00043835,120]
[335066709,1723803048835,-500.0,0.00043835,120]
[335066710,1723803048844,-650.37,0.00043835,120]
[335066711,1723803048854,-631.55,0.00043835,120]
[335066712,1723803048864,-154.142978,0.00043835,120]
[335066713,1723803048874,-154.142978,0.00043835,120]
[335066714,1723803048883,-666.25,0.00043835,120]
[335066715,1723803048893,-154.142978,0.00043835,120]
[335066716,1723803048903,-500.0,0.00043835,120]
[335066717,1723803048913,-154.142978,0.00043835,120]
[335066718,1723803048922,-154.142978,0.00043835,120]
[335066719,1723803048933,-154.142978,0.00043835,120]
[335066720,1723803048943,-500.0,0.00043835,120]
[335066721,1723803048952,-542.63,0.00043835,120]
[335066722,1723803048961,-500.0,0.00043835,120]
[335066723,1723803048971,-500.0,0.00043835,120]
[335066724,1723803048980,-500.0,0.00043835,120]
[335066725,1723803048989,-151.0,0.00043835,120]
[335066726,1723803049101,-151.0,0.00043835,120]
[335066727,1723803049116,-151.0,0.00043835,120]
[335066728,1723803049126,-500.0,0.00043835,120]
[335066729,1723803049136,-1896.16,0.00043835,120]
[335066730,1723803049146,-500.81841676,0.00043835,120]
[335066731,1723803049156,-503.61225305,0.00043835,120]
[335066732,1723803049166,-500.0,0.00043835,60]
[335066733,1723803049175,-500.0,0.00043835,120]
[335066734,1723803049186,-500.0,0.00043835,120]
[335066735,1723803049196,-451.81393421,0.00043835,120]
[335066736,1723803049205,-500.0,0.00043835,120]
[335066737,1723803049215,-512.46722851,0.00043835,120]
[335066738,1723803049225,-500.0,0.00043835,120]
[335066739,1723803049234,-151.0,0.00043835,120]
[335066740,1723803049244,-151.0,0.00043835,120]
[335066741,1723803049253,-151.0,0.00043835,120]
[335066742,1723803049263,-3092.83,0.00043835,120]
[335066743,1723803049273,-500.0,0.00043835,120]
[335066744,1723803049282,-500.0,0.00043835,120]
[335066745,1723803049292,-500.0,0.00043835,120]
[335066746,1723803049302,-504.79179776,0.00043835,120]
[335066747,1723803049312,-6947.59,0.00043835,120]
[335066748,1723803049321,-768.44,0.00043835,120]
[335066749,1723803049331,-500.0,0.00043835,120]
[335066750,1723803049340,-500.0,0.00043835,120]
[335066751,1723803049351,-500.0,0.00043835,2]
[335066752,1723803049360,-500.0,0.00043835,120]
[335066753,1723803049370,-2524.76,0.00043835,120]
[335066754,1723803049379,-500.0,0.00043835,120]
[335066755,1723803049388,-500.0,0.00043835,120]
[335066756,1723803049397,-500.0,0.00043835,120]
[335066757,1723803049407,-500.0,0.00043835,120]
[335066758,1723803049417,-500.0,0.00043835,120]
[335066759,1723803049427,-500.0,0.00043835,120]
[335066760,1723803049436,-636.26,0.00043835,120]
[335066761,1723803049445,-934.3,0.00043835,120]
[335066762,1723803049455,-500.0,0.00043835,120]
[335066763,1723803049465,-814.19,0.00043835,120]
[335066764,1723803049474,-500.0,0.00043835,10]
[335066765,1723803049484,-6488.71,0.00043835,120]
[335066766,1723803049493,-832.28,0.00043835,120]
[335066767,1723803049503,-6488.71,0.00043835,120]
[335066768,1723803049513,-6488.71,0.00043835,120]
[335066769,1723803049522,-500.0,0.00043835,120]
[335066770,1723803049532,-6488.71,0.00043835,120]
[335066771,1723803049542,-6488.71,0.00043835,120]
[335066772,1723803049551,-6488.71,0.00043835,120]
[335066773,1723803049560,-6488.71,0.00043835,120]
[335066774,1723803049571,-6488.71,0.00043835,120]
[335066775,1723803049580,-6488.71,0.00043835,120]
[335066776,1723803049590,-6488.71,0.00043835,120]
[335066777,1723803049599,-6488.71,0.00043835,120]
[335066778,1723803049609,-6488.71,0.00043835,120]
[335066779,1723803049618,-6488.71,0.00043835,120]
[335066780,1723803049628,-1195.73,0.00043835,120]
[335066781,1723803049637,-6488.71,0.00043835,120]
[335066782,1723803049647,-6488.71,0.00043835,120]
[335066783,1723803049657,-6488.71,0.00043835,120]
[335066784,1723803049667,-500.0,0.00043835,120]
[335066785,1723803049676,-6488.71,0.00043835,120]
[335066786,1723803049686,-500.0,0.00043835,120]
[335066787,1723803049695,-6488.71,0.00043835,120]
[335066788,1723803049704,-6488.71,0.00043835,120]
[335066789,1723803049713,-6488.71,0.00043835,120]
[335066790,1723803049723,-6488.71,0.00043835,120]
[335066791,1723803049732,-6488.71,0.00043835,120]
[335066792,1723803049742,-6488.71,0.00043835,120]
[335066793,1723803049751,-6488.87302192,0.00043835,120]
[335066794,1723803049761,-500.0,0.00043835,120]
[335066795,1723803049770,-505.60260265,0.00043835,120]
[335066796,1723803049779,-505.26904164,0.00043835,120]
[335066797,1723803049790,-515.41538328,0.00043835,120]
[335066798,1723803049799,-500.0,0.00043835,120]
[335066799,1723803049808,-505.74159461,0.00043835,120]
[335066800,1723803049817,-517.92033415,0.00043835,120]
[335066801,1723803049827,-625.15,0.00043835,120]
[335066802,1723803049836,-500.0,0.00043835,120]
[335066803,1723803049847,-544.37,0.00043835,120]
[335066804,1723803049858,-956.67,0.00043835,120]
[335066805,1723803049869,-3143.94,0.00043835,120]
[335066806,1723803049878,-3143.94,0.00043835,120]
[335066807,1723803049887,-3143.94,0.00043835,120]
[335066808,1723803049897,-3143.94,0.00043835,120]
[335066809,1723803049906,-3143.94,0.00043835,120]
[335066810,1723803049915,-500.0,0.00043835,120]
[335066811,1723803049925,-3143.94,0.00043835,120]
[335066812,1723803049935,-500.0,0.00043835,120]
[335066813,1723803049944,-151.0,0.00043835,120]
[335066814,1723803049954,-3143.94,0.00043835,120]
[335066815,1723803049963,-151.0,0.00043835,120]
[335066816,1723803049973,-3143.94,0.00043835,120]
[335066817,1723803049982,-151.0,0.00043835,120]
[335066818,1723803049991,-3143.94,0.00043835,120]
[335066819,1723803050000,-3143.94,0.00043835,120]
[335066820,1723803050011,-3143.94,0.00043835,120]
[335066821,1723803050020,-3143.94,0.00043835,120]
[335066822,1723803050029,-500.0,0.00043835,120]
[335066823,1723803050039,-3143.94,0.00043835,120]
[335066824,1723803050049,-3143.94,0.00043835,120]
[335066825,1723803050058,-3143.94,0.00043835,120]
[335066826,1723803050068,-3143.94,0.00043835,120]
[335066827,1723803050077,-3143.94,0.00043835,120]
[335066828,1723803050087,-3143.94,0.00043835,120]
[335066829,1723803050096,-3143.94,0.00043835,120]
[335066830,1723803050108,-579.92,0.00043835,120]
[335066831,1723803050118,-3143.94,0.00043835,120]
[335066832,1723803050128,-3143.94,0.00043835,120]
[335066833,1723803050138,-500.0,0.00043835,120]
[335066834,1723803050148,-3143.94,0.00043835,120]
[335066835,1723803050157,-3143.94,0.00043835,120]
[335066836,1723803050166,-500.0,0.00043835,120]
[335066837,1723803050176,-1014.75,0.00043835,120]
[335066838,1723803050185,-3143.97860132,0.00043835,120]
[335066839,1723803050195,-500.0,0.00043835,120]
[335066840,1723803050204,-686.43,0.00043835,120]
[335066841,1723803050214,-631.6,0.00043835,120]
[335066842,1723803050223,-500.0,0.00043835,120]
[335066843,1723803050232,-500.0,0.00043835,120]
[335066844,1723803050242,-513.1413314,0.00043835,120]
[335066845,1723803050251,-641.61,0.00043835,120]
[335066846,1723803050261,-736.21,0.00043835,120]
[335066847,1723803050270,-1021.76,0.00043835,120]
[335066848,1723803050280,-200.0,0.00043873,10]
[335066849,1723803050292,-155.05125079,0.00043873,10]
[335066850,1723803050301,-200.0,0.00043873,4]
[335066851,1723803050310,-200.17949037,0.00043873,10]
[335066852,1723803050319,-200.0,0.00043873,3]
[335066853,1723803050329,-158.07,0.000439,30]
[335066854,1723803050339,-316.4827715,0.00043945,2]
[335066855,1723803050348,-1000.0,0.00043999,120]
[335066856,1723803050357,-1000.0,0.00044,14]
[335066857,1723803050367,-154.79103311,0.00044,120]
[335066858,1723803050376,-500.0,0.00044109,120]
[335066859,1723803050385,-151.0,0.00044109,120]
[335066860,1723803050396,-440.29512198,0.00044109,120]
[335066861,1723803050405,-516.37387156,0.00044109,120]
[335066862,1723803050415,-500.0,0.00044109,120]
[335066863,1723803050424,-500.0,0.00044109,120]
[335066864,1723803050434,-500.0,0.00044109,120]
[335066865,1723803050443,-500.0,0.00044109,120]
[335066866,1723803050453,-500.0,0.00044109,120]